Cogmind - Beta 15 @@@ ROGUE MODE // 2025.05.31 @ 00:37:48 Player: Rohain Result: Destroyed by WO-DEP(j) with Overtuned Pulse Rifle Performance ------------- Evolutions (0) 0 Regions Visited (4) 800 Robots Destroyed (17) 85 Value Destroyed (556) 556 Prototype IDs (8) 160 Alien Tech Used (0) 0 Bonus (800) 800 TOTAL SCORE: 2401 Bonus ------- Registered with UFD 300 Met Optimus in HQ 500 Cogmind --------- Core Integrity 0/250 Matter 240/300 Energy 331/340 System Corruption 2% Temperature Warning (360) Movement Walking (95) Location -7/Scraptown Parts ------- > --- POWER (1) -------- Graviton Reactor > --- PROPULSION (2) --- Overtuned Titanium Leg Improved VSS Leg > --- UTILITY (2) ------ Small Storage Unit Makeshift Light Armor Plating > --- WEAPON (2) ------- Overtuned Pulse Rifle > --- INVENTORY (8) ---- Improved VSS Leg A0-MCA's Component Scanner Beam Rifle Phase Cannon Phase Cannon Rocket Launcher Peak State ------------ > --- POWER ------------ Graviton Reactor > --- PROPULSION ------- Overtuned Titanium Leg Improved Titanium Leg > --- UTILITY ---------- Small Storage Unit Makeshift Light Armor Plating > --- WEAPON ----------- Overtuned Pulse Rifle Helical Railgun > --- INVENTORY -------- Improved VSS Leg Improved VSS Leg A0-MCA's Component Scanner Beam Rifle Phase Cannon Phase Cannon Rocket Launcher [Rating: 36] Favorites ----------- Power Ion Engine Engine Ion Engine Reactor Graviton Reactor Propulsion Aluminum Leg Leg Aluminum Leg Wheel Subdweller Monowheel Utility Small Storage Unit Storage Small Storage Unit Processor Signal Interpreter Protection Makeshift Light Armor Plating Weapon Beam Cannon Energy Gun EM Pulse Gun Energy Cannon Beam Cannon Ballistic Gun Helical Railgun Launcher Rocket Launcher Build | -11 -10 -10 -10 -7 ------- Run | Yrd Mat Min Sub Scr Slots Evolved . | . . . . . Power . | . . . . . Propulsion . | . . . . . Utility . | . . . . . Weapon . | . . . . . Parts Attached 25 | 6 6 2 4 7 Power 3 | 1 1 . . 1 Engine 2 | 1 1 . . . Core . | . . . . . Reactor 1 | . . . . 1 Propulsion 8 | 2 . 1 2 3 Treads . | . . . . . Leg 6 | 2 . 1 . 3 Wheel 2 | . . . 2 . Hover . | . . . . . Flight . | . . . . . Utility 4 | 1 2 . . 1 Device . | . . . . . Storage 1 | 1 . . . . Processor 2 | . 2 . . . Hackware . | . . . . . Protection 1 | . . . . 1 Artifact . | . . . . . Weapon 10 | 2 3 1 2 2 Energy Gun 5 | 2 1 1 . 1 Energy Cannon 2 | . 1 . 1 . Ballistic Gun 1 | . . . . 1 Ballistic Cannon . | . . . . . Launcher 2 | . 1 . 1 . Special Weapon . | . . . . . Impact Weapon . | . . . . . Slashing Weapon . | . . . . . Piercing Weapon . | . . . . . Special Melee Weapon . | . . . . . Unidentified Prototypes 2 | . . . . 2 Parts Lost 2 | . 1 . . 1 Power . | . . . . . Propulsion . | . . . . . Utility . | . . . . . Weapon 2 | . 1 . . 1 Highest Loss Streak 1 | . 1 . . 1 To Critical Strikes . | . . . . . Average Backups 6 | 1 6 8 5 7 Power . | . 1 1 . . Propulsion . | . 1 2 . . Utility 1 | . . . . 1 Weapon 4 | 1 4 5 4 5 Tool/Special . | . . . . . Unused Backups 14 | . 2 . 4 8 Power 1 | . . . 1 . Propulsion 3 | . . . 2 1 Utility 2 | . . . . 2 Weapon 8 | . 2 . 1 5 Tool/Special . | . . . . . Average Slot Usage (%) 82 | . 88 100 91 73 Engine 13 | . 14 14 14 12 Leg 18 | . 28 28 4 14 Wheel 8 | . . . 16 12 Storage 14 | . 14 14 14 14 Processor 13 | . 13 14 14 14 Energy Gun 4 | . 5 14 1 1 Energy Cannon 6 | . 11 14 12 . Launcher 1 | . . . 12 . Peak Build Rating 36 | 6 8 9 12 36 Average Rating 9 | 4 6 8 10 12 On Entrance 6 | . 6 8 9 10 Naked Turns . | . . . . . Heaviest Build 33 | 14 16 16 22 33 Greatest Support 40 | 20 20 20 40 39 Greatest Overweight (x) 1 | . 1 . 1 1 Average Overweight (x) . | . . . . . Largest Inventory Capacity 8 | 8 8 8 8 8 Average Capacity 7 | 7 8 8 8 8 Most Carried 8 | 3 8 8 8 8 Average Carried 7 | 1 6 7 6 7 Final Capacity 8 | 8 8 8 8 8 Final Carried 8 | 2 8 8 6 6 Class Distribution -------------------- 96% | Mutant 3% | Scavenger-Mutant Dominant Class ---------------- Mutant | -10/Materials Mutant | -10/Mines Mutant | -10/Subcaves Mutant | -7/Scraptown Resources | -11 -10 -10 -10 -7 ----------- Run | Yrd Mat Min Sub Scr Matter Collected 548 | 182 173 38 50 105 Remotely . | . . . . . Salvage Created 701 | . 280 100 112 209 Parts 39 | . 16 4 8 11 Haulers Intercepted . | . . . . . Recyclers Shooed 1 | . 1 . . . Parts Field Recycled . | . . . . . Retrieved Matter . | . . . . . Parts Self-Destructed 9 | . . . 9 . Prevented . | . . . . . Kills | -11 -10 -10 -10 -7 ------- Run | Yrd Mat Min Sub Scr Combat Hostiles Destroyed 16 | . 5 2 5 4 Guns 7 | . 2 1 . 4 Cannons 4 | . 2 1 1 . AOE 4 | . . . 4 . Classes Destroyed 7 | . 2 . 2 3 Recycler 1 | . 1 . . . Swarmer 3 | . . . 3 . Grunt 7 | . 5 2 . . Subdweller 2 | . . . 2 . Guru 2 | . . . . 2 Scrapper 1 | . . . . 1 Mutant 1 | . . . . 1 Best Kill Streak 3 | . 3 2 3 2 Combat Bots Only 3 | . 3 2 3 2 Max Kills in Single Turn 2 | . 1 1 2 1 Gunslinging . | . . . . . Exploded 2 | . . . 2 . Melee . | . . . . . Uniques/NPCs Destroyed . | . . . . . Combat | -11 -10 -10 -10 -7 -------- Run | Yrd Mat Min Sub Scr Hostile Shots Fired 114 | . 25 13 5 71 Missed 30 | . 5 3 5 17 Hits 84 | . 20 10 . 54 Projectile 84 | . 20 10 . 54 Critical Strikes 2 | . . . . 2 Damage Taken 1094 | . 230 141 . 723 Core 255 | . 55 23 . 177 Absorbed by Shields . | . . . . . Core Remaining (%) 100 | 100 . . . . Volleys Fired 42 | . 19 6 3 14 Largest 2 | . 2 2 2 2 Hottest 118 | . 100 100 89 118 Shots Fired 65 | . 32 12 4 17 Gun 50 | . 26 6 1 17 Cannon 12 | . 5 6 1 . Launcher 3 | . 1 . 2 . Special . | . . . . . Kinetic 10 | . . . . 10 Thermal 20 | . 5 6 2 7 Explosive 3 | . 1 . 2 . Electromagnetic 32 | . 26 6 . . Robot Hit Streak 8 | . 7 6 5 8 Robot Miss Streak 3 | . 1 2 . 3 Penetration Max 1 | . . . . 1 Secondary Targets . | . . . . . Shots Hit Robots 41 | . 20 8 3 10 Core Hits 25 | . 8 4 6 7 Critical Kills . | . . . . . Critical Parts Destroyed . | . . . . . Critical Strikes 1 | . . . . 1 Burn 1 | . . . . 1 Melee Attacks . | . . . . . Impact . | . . . . . Slashing . | . . . . . Piercing . | . . . . . Sneak Attacks . | . . . . . Combat Hostiles . | . . . . . Follow-up Attacks . | . . . . . Damage Inflicted 1149 | . 294 205 287 363 Guns 690 | . 246 67 14 363 Cannons 136 | . 37 69 30 . Explosions 323 | . 11 69 243 . Melee . | . . . . . Ramming . | . . . . . Kinetic 237 | . . . . 237 Thermal 345 | . 37 138 44 126 Explosive 254 | . 11 . 243 . Electromagnetic 313 | . 246 67 . . Impact . | . . . . . Slashing . | . . . . . Piercing . | . . . . . Highest Corruption 2 | . 2 2 2 2 Average Corruption 2 | . 2 2 2 2 Corruption Purged . | . . . . . Corruption Blocked . | . . . . . Effects 28 | . 5 4 4 15 Message Errors 4 | . 1 . . 3 Matter Fused 6 | . 1 . 2 3 Heat Flow Errors 4 | . . 1 . 3 Energy Discharges 7 | . 1 1 1 4 Data Loss (minor) 4 | . 1 2 . 1 Data Loss (major) 2 | . 1 . 1 . Alerts 1 | . . . . 1 Overload Shots . | . . . . . Overflow Damage 8 | . . 8 . . Projectiles . | . . . . . Explosions 8 | . . 8 . . Melee . | . . . . . Knockbacks . | . . . . . Impact . | . . . . . Kinetic . | . . . . . Secondary . | . . . . . Self-Inflicted Damage 24 | . 5 19 . . Shots 2 | . 1 1 . . Rammed . | . . . . . Targets Rammed . | . . . . . Kicked . | . . . . . Crushed . | . . . . . Highest Temperature 417 | . 288 309 . 417 Average Temperature 144 | . 120 146 . 163 Received Heat Transfer 445 | . 120 72 . 253 Effects 3 | . . . . 3 Shutdowns 1 | . . . . 1 Short Circuit 1 | . . . . 1 Damage (minor) 1 | . . . . 1 Siege Activations . | . . . . . Martial Activations . | . . . . . Shielding Activations . | . . . . . Robots Disrupted . | . . . . . Combat Hostiles . | . . . . . Robots Corrupted 1 | . 1 . . . Combat Hostiles 1 | . 1 . . . Parts Fried . | . . . . . Impact Corruptions . | . . . . . Robots Melted . | . . . . . Combat Hostiles . | . . . . . Parts Melted 2 | . . . . 2 Heat Transferred 820 | . 74 298 74 374 Parts Sabotaged . | . . . . . Parts Stolen . | . . . . . Parts Stripped . | . . . . . Power Chain Reactions 1 | . . 1 . . Alert | -11 -10 -10 -10 -7 ------- Run | Yrd Mat Min Sub Scr Maximum Alert Level . | . . . . . Low Security (%) 100 | 100 100 100 . . Level 1 . | . . . . . Level 2 . | . . . . . Level 3 . | . . . . . Level 4 . | . . . . . Level 5 . | . . . . . High Security . | . . . . . Max Security . | . . . . . Peak Influence 53 | . 40 53 . . Initial . | . . . . . Average 8 | . 9 7 . . Influence Increases 290 | . 167 53 70 . Destroy 0b10 Robot/C 200 | . 100 40 60 . Destroy 0b10 Robot/NC 5 | . 5 . . . Destroy Leader 40 | . 20 10 10 . Successful Hack 18 | . 18 . . . Disable Machine 15 | . 15 . . . Destroy Structure 12 | . 9 3 . . Influence Decreases 290 | . 167 53 70 . Time Decay 280 | . 157 53 70 . Lost Part 10 | . 10 . . . Squads Dispatched 3 | . 3 . . . Investigation 2 | . 2 . . . Extermination . | . . . . . Reinforcement 1 | . 1 . . . Assault . | . . . . . Garrison . | . . . . . Intercept . | . . . . . Searches Triggered . | . . . . . Construction Impeded . | . . . . . Haulers Reinforced . | . . . . . Active Scanning Responses . | . . . . . Cargo Convoy Interrupts . | . . . . . Stealth | -11 -10 -10 -10 -7 --------- Run | Yrd Mat Min Sub Scr Distress Signals 1 | . 1 . . . Communications Jammed . | . . . . . Distress Signals . | . . . . . Times Spotted 36 | . 11 2 5 18 Peak Tracking Total 4 | . 4 2 3 4 Tactical Retreats . | . . . . . Traps | -11 -10 -10 -10 -7 ------- Run | Yrd Mat Min Sub Scr Traps Triggered 4 | . 4 . . . Indirectly . | . . . . . Trap Hack Attempts . | . . . . . Triggered . | . . . . . Disarmed . | . . . . . Reprogrammed . | . . . . . Reused . | . . . . . Traps Extracted . | . . . . . Installed . | . . . . . Triggered . | . . . . . Machines | -11 -10 -10 -10 -7 ---------- Run | Yrd Mat Min Sub Scr Machines Disabled 2 | . 1 . . 1 Max in Single Turn 1 | . 1 . . 1 Machines Repaired . | . . . . . Machines Dismantled . | . . . . . Machines Sabotaged . | . . . . . Overloaded Fab Kills . | . . . . . Hacking | -11 -10 -10 -10 -7 --------- Run | Yrd Mat Min Sub Scr Machines Accessed 9 | . 2 . . 7 Terminals 2 | . 2 . . . Fabricators . | . . . . . Repair Stations . | . . . . . Recycling Units . | . . . . . Scanalyzers . | . . . . . Garrison Access . | . . . . . Total Hacks 52 | . 6 . . 46 Successful 50 | . 4 . . 46 Failed 2 | . 2 . . . Catastrophic . | . . . . . Database Lockouts . | . . . . . Manual 6 | . 6 . . . Terminals 6 | . 6 . . . Fabricators . | . . . . . Repair Stations . | . . . . . Recycling Units . | . . . . . Scanalyzers . | . . . . . Garrison Access . | . . . . . Terminal Hacks 48 | . 2 . . 46 Record 39 | . . . . 39 Robot Analysis 7 | . 1 . . 6 Recall Investigation 1 | . 1 . . . Proto ID Catalog 1 | . . . . 1 Fabricator Hacks . | . . . . . Repair Station Hacks . | . . . . . Recycling Unit Hacks . | . . . . . Scanalyzer . | . . . . . Garrison Access Hacks . | . . . . . Unauthorized Hacks 2 | . 2 . . . Terminals 2 | . 2 . . . Botnet 2 | . 2 . . . Fabricators . | . . . . . Repair Stations . | . . . . . Recycling Units . | . . . . . Scanalyzers . | . . . . . Garrison Access . | . . . . . Data Cores Recovered . | . . . . . Used . | . . . . . Hacking Detections 1 | . 1 . . . Full Trace Events . | . . . . . Feedback Events . | . . . . . Feedback Blocked . | . . . . . Robot Schematics Acquired . | . . . . . Robots Built . | . . . . . Authchips . | . . . . . Time . | . . . . . Total Robot Build Rating . | . . . . . Part Schematics Acquired . | . . . . . Parts Built . | . . . . . Authchips . | . . . . . Time . | . . . . . Total Part Build Rating . | . . . . . Parts Repaired . | . . . . . Time . | . . . . . Parts Recycled . | . . . . . Recycled Matter . | . . . . . Retrieved Matter . | . . . . . Retrieved Components . | . . . . . Parts Scanalyzed . | . . . . . Part Schematics Acquired . | . . . . . Parts Damaged . | . . . . . Bothacking | -11 -10 -10 -10 -7 ------------ Run | Yrd Mat Min Sub Scr Used RIF Installer . | . . . . . Robots Hacked . | . . . . . Non-combat . | . . . . . Combat . | . . . . . Robot Hacks Applied . | . . . . . Relay Couplers Released . | . . . . . Fabnet Peak Effective % . | . . . . . Robots Rewired . | . . . . . Allies Hacked . | . . . . . Hacks Repelled . | . . . . . Allies | -11 -10 -10 -10 -7 -------- Run | Yrd Mat Min Sub Scr Total Allies . | . . . . . Largest Group . | . . . . . Highest-Rated Group . | . . . . . Highest-Rated Ally . | . . . . . Total Orders . | . . . . . Ally Attacks . | . . . . . Total Damage . | . . . . . Kills . | . . . . . Allies Corrupted . | . . . . . Allies Melted 3 | . . . . 3 Intel | -11 -10 -10 -10 -7 ------- Run | Yrd Mat Min Sub Scr Active Infowar (turns) . | . . . . . Robot Analysis Total 7 | . 1 . . 6 Derelict Logs Recovered 1 | . . 1 . . Drone Launches . | . . . . . Drone Recoveries . | . . . . . Exploration | -11 -10 -10 -10 -7 ------------- Run | Yrd Mat Min Sub Scr Turns Passed 2468 | 58 587 353 260 1210 Spaces Moved 1799 | 39 402 259 204 895 Core 1 | 1 . . . . Treads . | . . . . . Legs 1588 | 38 402 259 23 866 Wheels 210 | . . . 181 29 Hover . | . . . . . Flight . | . . . . . Fastest Speed 50 | 50 120 120 110 95 Average Speed 124 | 118 120 120 116 129 Slowest Speed 200 | 120 190 120 120 200 Overloaded Moves . | . . . . . Propulsion Burnouts . | . . . . . Robots Hopped . | . . . . . Potential Cave-ins . | . . . . . Cave-ins Triggered . | . . . . . Exploration Rate (%) 45 | 4 73 63 20 68 Regions Visited 4 Branch Regions 3 Pre-discovered Areas 1 | . . 1 . . Known Exits Taken 3 | . 1 1 1 . Unknown Exits Taken 1 | 1 . . . . Scrap Searched 2 | . . . . 2 Spaces Dug . | . . . . . Terrain Destroyed 32 | . 9 3 17 3 Melee . | . . . . . Projectile 3 | . . . . 3 AOE 29 | . 9 3 17 . Terrain Rammed . | . . . . . Walls Destroyed . | . . . . . Machines Disabled . | . . . . . Actions | -11 -10 -10 -10 -7 --------- Run | Yrd Mat Min Sub Scr Total 1972 | 49 476 291 223 933 Wait 50 | . 26 20 4 . Move 1795 | 38 401 258 203 895 Hop . | . . . . . Pick Up 25 | 5 11 2 1 6 Fast Attach 16 | 3 5 . 3 5 Attach 10 | 3 4 1 . 2 Detach 5 | . 3 . . 2 Swap 3 | . 1 1 1 . Drop 26 | . 6 3 8 9 Fire 42 | . 19 6 3 14 Melee . | . . . . . Ram . | . . . . . Kick . | . . . . . Crush . | . . . . . Escape Stasis . | . . . . . Rewire . | . . . . . Trap . | . . . . . Miscellaneous . | . . . . . Route ------- -11/Scrapyard -10/Materials (discovered 3 exits: *Mat x2 / *Min) -10/Mines (discovered 3 exits: *Mat x2 / *Sub) -10/Subcaves -7/Scraptown (discovered 2 exits: Fac x2) History --------- Turn | Location | Event 21 | -11/Scrapyard | Discovered new exit (range 15) 59 | -11/Scrapyard | Entered Materials 261 | -10/Materials | Discovered new exit (range 16) 302 | -10/Materials | Build established: Mutant 480 | -10/Materials | Discovered new exit (range 7) 510 | -10/Materials | Identified exit to Materials 595 | -10/Materials | Discovered new exit (range 16) 612 | -10/Materials | Identified exit to Mines 646 | -10/Materials | Entered Mines 661 | -10/Mines | Met a Derelict bent on vengeance 721 | -10/Mines | Received a Rocket Launcher from a helpful Derelict 739 | -10/Mines | Discovered exit to Materials (range 7) 858 | -10/Mines | Discovered exit to Materials (range 6) 986 | -10/Mines | Discovered new exit (range 3) 997 | -10/Mines | Identified exit to Subcaves 999 | -10/Mines | Entered Subcaves 1000 | -10/Subcaves | Approached by a straggling Scientist 1125 | -10/Subcaves | Scientist uncovered a shortcut to Scraptown 1257 | -10/Subcaves | Identified exit to Scraptown 1259 | -10/Subcaves | Entered Scraptown 1726 | -7/Scraptown | Visited Assassins FH 1763 | -7/Scraptown | Visited IN-MT5's Study 1814 | -7/Scraptown | Visited UFD Registry 1814 | -7/Scraptown | Registered with UFD as "Boltchaser" 1883 | -7/Scraptown | Visited Abandonware Association 1914 | -7/Scraptown | Learned abandonware demo "POISON.EXE" 1950 | -7/Scraptown | Visited A0-MCA Data Center 1958 | -7/Scraptown | Given a C+ rating by A0-MCA 1963 | -7/Scraptown | Found A0-MCA's Component Scanner 1991 | -7/Scraptown | Visited Chapter 10 2034 | -7/Scraptown | Visited Cartography Club 2086 | -7/Scraptown | Visited Scrapoid Pod Storage 2153 | -7/Scraptown | Met Optimus 2153 | -7/Scraptown | Accepted into 0bPrime 2222 | -7/Scraptown | Visited Science Guys 2269 | -7/Scraptown | Visited Curators Association 2300 | -7/Scraptown | Visited Analyses Database 2329 | -7/Scraptown | Visited Supply Room 2343 | -7/Scraptown | Civil war broke out across Scraptown 2417 | -7/Scraptown | Identified exit to Factory 2443 | -7/Scraptown | Core integrity fell below 50% 2448 | -7/Scraptown | Lost 6 allies 2458 | -7/Scraptown | Core integrity fell below 20% 2469 | -7/Scraptown | Destroyed by WO-DEP(j) with Overtuned Pulse Rifle Last Messages --------------- 02451_ Slug penetrates Machine. 02452_ Penetrated by Bolt. 02453_ Slug penetrates NM-QKT(j). 02454_ Imp. Titanium Leg broken. 02454_ Overheating: Short circuit. 02455_ Slug penetrates NM-QKT(j). 02455_ Mak. Salvage Targeting Computer melted. 02455_ NM-QKT(j) destroyed. 02457_ Power failure, Graviton Reactor shutdown. 02457_ Penetrated by Bolt. 02457_ GN-HEF(p) destroyed. 02459_ Slug penetrates WO-DEP(j). 02460_ Penetrated by Bolt. 02463_ Discarded Signal Interpreter. 02464_ Dropped Broken Imp. Titanium Leg. 02465_ Penetrated by Bolt. 02466_ Helical Railgun destroyed. 02468_ Overheating: Mak. Light Armor Plating damaged (-70). 02468_ Penetrated by Bolt. Map ----- +----------------------------------------------------+ | ???#" "## | | ???#" "## | | ???#" "## ! | | ???#" "## | | ####" | | """" """""""""""""""""""""""""""" "## | | """" """""""""""""""""""""""""""" "##"""" | | """" ""###### ################"" "###### | | """" ""# ##????????#"" "#????? | | """" ""# X"#????????#"" "#????? | | """" ""# "" "" ##????????#"" "#??? $ | | """" ""# "" "" X"#??????###"" "#?? | | """" !!""# " " ######### #"" "## | | #### *%!" "" | | ???#!! == " "" "## | | ####"%! !%!"# " " ######### #"" "#?? $ | | =%!%= # "" "" ""#??????###"" "#??? | | !=! # "" "" ##????????#"" "#????? | | %[ # X"#????????#"" "#????? | | "# ##????????#"" "#????? | | [= ["######g ################"" "###### | | *%!% """""" """"""""""""""""""" "## "& | | %=[= """"j"""" """""""""""""" "" | | !%! * h "## | | == [% "## | | ! @= "## "" | | """#" % = !== j* %! ## "" | | ???#" * ! = *%! !%[ [[[= # | | ???#"""""=% """""""""" """"" """%"""""" ## | | ???######"%########### ###########!###### ## | | ????#" ]! /"#??# #??#" "# ## "" | | ????#" %/]""#??# #??##"" ""## ##" "" | | ????#""!! ] "#??#""" ""#???#=" "]## ###### | | ????#""! ]]"#??#"" "#??##"" ""## #????? | | ????#"!![[ "#??#"" " X "#??#" "# #????? | | ????#"""[[ ""#??#""""""""#??##"" ""## #????? | | ????##########??##########???#!" "=## ????? | | ?????????????????????????????#"" ""#? ????? | | ????????????????????????????#" """ "# ???? | | ????????????????????????????#### "*" #### ????? | | ???????????????????????????????#"###"#??? ???? | | ???????????????????????????????##???##??? ?????? | | ?????????????????????????????????????????????????? | | ?????????????????????????????????????????????????? | | ?????????????????????????????????????????????????? | | ?????????????????????????????????????????????????? | | ?????????????????????????????????????????????????? | | ?????????????????????????????????????????????????? | | ?????????????????????????????????????????????????? | | ?????????????????????????????????????????????????? | +----------------------------------------------------+ Best States ------------- Heat Dissipation 25 Energy Generation 29 Energy Capacity 340 Matter Stores 300 Matter Capacity 300 Sight Range 16 Terrain Scan Density 10 Evasion (%) 55 Targeting Accuracy 5 Item Schematics ----------------- None Robot Schematics ------------------ None Fabricated ------------ Nothing Repaired ---------- Nothing Alien Tech Used ----------------- None Achievements -------------- None Challenges ------------ None Game ------ Seed ZioniteRecoilWeb Manual? 0 Play Time 00:23:11 Cumulative 74.4 hours Start 2025.05.31 @ 00:16:27 End 2025.05.31 @ 00:37:48 Sessions 1 Manual Loads 0 Difficulty Rogue Special Mode None Game No. 130 Rogue 114 Adventurer 16 Explorer 0 Win Type - Total 1 Types 1/0/0/0/0/0/0/0/0/0 Lore% 31 Gallery% 48 Achievement% 48 Wizard Run 0 Options --------- Layout 2 ASCII 0 Keyboard 0 Movement Mouse Keybinds 0 Fullscreen 1 Font 24/Smallcaps Map View 50x44 Zoom Use 0% Tactical HUD 1 Map Filters NONE Filters NONE Steam 1 RUN: 3d243df4-50ac-4ee9-9775-0e8680be9317